bitfinex-derivatives/quotes_SOLF0:USTF0_20250720
["timestamp","ask_amount","ask_price","bid_price","bid_amount"]
[1753019227088,2.2634178,182.75,182.74,8.3798]
[1753019227484,5.3034178,182.75,182.74,8.3798]
[1753019227690,5.4673,182.83,182.77,5.4689]
[1753019227988,2.2634178,182.78,182.77,5.4689]
[1753019228189,5.3034178,182.78,182.77,5.4689]
[1753019230792,3.04,182.77,182.76,5.4691]
[1753019231092,3.04,182.77,182.67,2.91]
[1753019231290,5.3034178,182.75,182.68,2.91]
[1753019231493,3.04,182.72,182.68,2.91]
[1753019231785,3.04,182.72,182.63,2.2634178]
[1753019231786,2.2634178,182.75,182.72,2.91]
[1753019231987,2.2634178,182.77,182.72,2.91]
[1753019232194,3.04,182.76,182.72,2.91]
[1753019232694,3.04,182.76,182.75,5.4695]
[1753019232893,3.04,182.76,182.75,8.3795]
[1753019233693,5.3034178,182.78,182.77,5.4689]
[1753019234498,3.04,182.77,182.76,5.4691]
[1753019235186,3.04,182.77,182.71,2.91]
[1753019235391,2.2634178,182.75,182.71,2.91]
[1753019235597,2.2634178,182.75,182.72,2.91]
[1753019236197,3.04,182.74,182.72,2.91]
[1753019236798,3.04,182.74,182.71,2.91]
[1753019237098,3.04,182.72,182.68,2.91]
[1753019237493,3.04,182.72,182.69,8.3811]
[1753019237797,3.04,182.72,182.69,2.91]
[1753019237998,3.04,182.71,182.7,5.4708]
[1753019238796,3.04,182.71,182.7,8.3808]
[1753019240600,3.04,182.71,182.7,2.91]
[1753019241003,3.04,182.71,182.69,5.4712]
[1753019241197,3.04,182.7,182.69,8.3812]
[1753019243101,5.3034178,182.7,182.62,116.25053814]
[1753019243305,3.04,182.69,182.62,116.25053814]
[1753019243500,3.04,182.69,182.68,2.91]
[1753019244197,3.04,182.69,182.68,8.3816]
[1753019244501,3.04,182.7,182.68,2.91]
[1753019244697,2.2634178,182.72,182.64,2.91]
[1753019244901,3.04,182.71,182.64,2.91]
[1753019245295,3.04,182.71,182.7,8.381]
[1753019248205,2.2634178,182.72,182.71,5.4707]
[1753019248403,5.4434178,182.72,182.71,8.5907]
[1753019249705,5.4434178,182.72,182.7,5.4709]
[1753019250006,3.18,182.72,182.69,3.12]
[1753019250207,3.18,182.72,182.65,3.12]
[1753019252014,3.18,182.7,182.67,3.12]
[1753019252408,3.18,182.7,182.68,3.12]
[1753019254004,3.18,182.7,182.66,3.12]
[1753019254208,3.18,182.66,182.63,3.12]
[1753019254407,2.2634178,182.65,182.58,2.2634178]
[1753019254705,3.18,182.63,182.62,3.12]
[1753019255606,3.18,182.63,182.57,3.12]
[1753019255905,2.2634178,182.65,182.61,8.5937]
[1753019255906,3.18,182.62,182.61,8.5937]
[1753019256407,3.18,182.62,182.58,3.12]
[1753019257112,3.18,182.62,182.59,5.4743]
[1753019257910,3.18,182.62,182.59,8.5943]
[1753019258312,3.18,182.62,182.59,3.12]
[1753019258915,5.4434178,182.62,182.59,8.5942]
[1753019259115,3.18,182.61,182.53,2.2634178]
[1753019259317,3.18,182.61,182.58,3.12]
[1753019260608,3.18,182.59,182.53,3.12]
[1753019260814,2.2634178,182.61,182.54,3.12]
[1753019261015,5.4434178,182.61,182.54,3.12]
[1753019261216,2.2634178,182.61,182.58,5.4745]
[1753019261416,3.18,182.59,182.58,5.4745]
[1753019262221,3.18,182.59,182.58,8.5945]
[1753019263220,8.33265487,182.7,182.59,3.12]
[1753019263423,3.18,182.63,182.59,3.12]
[1753019263719,2.2634178,182.62,182.59,5.4741]
[1753019263917,3.18,182.61,182.59,5.4741]
[1753019264624,3.18,182.61,182.58,5.4745]
[1753019264823,3.18,182.61,182.53,3.12]
[1753019265224,3.18,182.61,182.58,5.4744]
[1753019265524,3.18,182.61,182.58,8.5944]
[1753019265920,2.2634178,182.6,182.57,5.4748]
[1753019266117,3.18,182.59,182.53,3.12]
[1753019266726,3.18,182.57,182.54,3.12]
[1753019267027,3.18,182.57,182.55,5.4755]
[1753019267221,2.2634178,182.58,182.5,2.2634178]
[1753019267420,3.18,182.56,182.55,3.12]
[1753019267823,3.18,182.56,182.55,8.5955]
[1753019271639,3.18,182.57,182.56,8.595]
[1753019272040,3.18,182.57,182.55,5.4754]
[1753019272730,3.18,182.55,182.47,2.2634178]
[1753019272933,3.18,182.55,182.53,3.12]
[1753019273532,3.18,182.55,182.53,8.596]
[1753019273734,3.18,182.55,182.53,5.476]
[1753019273930,2.2634178,182.61,182.47,3.12]
[1753019274132,3.18,182.56,182.49,3.12]
[1753019274834,3.18,182.56,182.54,5.4757]
[1753019275040,3.18,182.54,182.49,3.12]
[1753019275244,3.18,182.53,182.49,3.12]
[1753019275745,2.2634178,182.55,182.52,3.12]
[1753019276040,2.2634178,182.55,182.46,103.8434178]
[1753019276041,3.18,182.54,182.53,3.12]
[1753019276536,3.18,182.54,182.53,8.5961]
[1753019278740,5.4834178,182.56,182.55,8.4355]
[1753019278935,3.22,182.56,182.55,8.4355]
[1753019279139,3.22,182.57,182.56,2.96]
[1753019279436,3.22,182.57,182.5,2.2634178]
[1753019279741,3.22,182.57,182.51,2.96]
[1753019279942,3.22,182.57,182.55,5.4753]
[1753019280443,3.22,182.56,182.55,2.96]
[1753019281047,8.689,182.65,182.55,2.96]
[1753019281236,2.2634178,182.6,182.55,2.96]
[1753019281435,3.22,182.58,182.55,2.96]
[1753019281635,2.2634178,182.6,182.57,2.96]
[1753019281837,2.2634178,182.6,182.52,2.2634178]
[1753019281838,3.22,182.66,182.59,2.96]
[1753019282047,2.2634178,182.69,182.6,2.2634178]
[1753019282241,3.22,182.68,182.61,2.96]
[1753019283645,3.22,182.68,182.65,5.4724]
[1753019284047,3.22,182.68,182.61,2.96]
[1753019285143,3.22,182.68,182.67,5.4719]
[1753019285644,2.2634178,182.71,182.7,5.4709]
[1753019285841,2.2634178,182.71,182.69,2.96]
[1753019286142,3.22,182.7,182.69,8.4313]
[1753019287846,3.22,182.7,182.6,10.948]
[1753019287847,3.22,182.7,182.6,2.2634178]
[1753019288144,367.84,182.77,182.61,2.96]
[1753019288145,3.22,182.69,182.61,2.96]
[1753019288446,3.22,182.69,182.63,2.96]
[1753019289445,2.2634178,182.7,182.67,5.4717]
[1753019289643,3.22,182.69,182.67,5.4717]
[1753019289945,3.22,182.69,182.62,2.2634178]
[1753019290143,2.2634178,182.68,182.63,2.96]
[1753019290343,3.22,182.67,182.64,2.96]
[1753019290944,3.22,182.67,182.65,5.4725]
[1753019292745,3.22,182.67,182.64,5.4727]
[1753019293046,3.22,182.65,182.62,2.96]
[1753019293247,3.22,182.65,182.6,71.86659495]
[1753019293452,3.22,182.65,182.62,5.4732]
[1753019293652,3.22,182.65,182.62,8.4332]
[1753019294048,3.22,182.62,182.58,2.96]
[1753019294247,3.22,182.59,182.58,2.96]
[1753019294641,3.22,182.59,182.58,8.4346]
[1753019294951,3.22,182.59,182.58,5.4746]
[1753019295652,3.22,182.6,182.57,8.4348]
[1753019295857,3.22,182.58,182.57,5.4748]
[1753019297254,3.22,182.58,182.55,5.4754]
[1753019297453,2.2634178,182.61,182.51,71.17304335]
[1753019297454,3.22,182.56,182.54,2.96]
[1753019297653,3.22,182.55,182.54,2.96]
[1753019297951,3.22,182.55,182.54,8.4358]
[1753019299254,3.22,182.53,182.52,2.96]
[1753019299848,2.2634178,182.55,182.52,2.96]
[1753019300047,3.22,182.54,182.53,2.96]
[1753019300250,3.22,182.56,182.53,2.96]
[1753019300446,3.22,182.56,182.52,2.96]
[1753019300657,3.22,182.63,182.52,2.96]
[1753019300854,2.2634178,182.57,182.52,2.96]
[1753019301057,5.4834178,182.57,182.56,8.4352]
[1753019301251,3.22,182.56,182.55,2.96]
[1753019302155,3.22,182.56,182.55,8.4353]
[1753019302751,2.2634178,182.57,182.56,5.4752]
[1753019302959,2.2634178,182.57,182.56,8.4352]
[1753019303158,5.4834178,182.57,182.56,8.4352]
[1753019303454,5.4834178,182.59,182.57,5.4748]
[1753019303653,3.22,182.58,182.57,5.4748]
[1753019303851,3.22,182.58,182.55,2.96]
[1753019304048,2.2634178,182.57,182.55,8.4354]
[1753019304253,3.22,182.56,182.53,2.96]
[1753019304447,2.2634178,182.55,182.53,2.96]
[1753019304653,3.22,182.54,182.53,8.4361]
[1753019305358,3.22,182.54,182.53,5.4761]
[1753019306056,3.22,182.54,182.53,8.4361]
[1753019307565,3.22,182.54,182.49,2.96]
[1753019307861,3.22,182.51,182.5,2.96]
[1753019308460,2.2634178,182.52,182.44,367.96]
[1753019308656,3.11,182.51,182.45,3.2]
[1753019308856,5.3734178,182.5,182.49,5.4771]
[1753019309256,5.3734178,182.5,182.49,8.6771]
[1753019309956,2.2634178,182.53,182.51,5.4767]
[1753019310161,5.3734178,182.53,182.45,3.2]
[1753019310362,3.11,182.45,182.39,3.2]
[1753019310564,3.11,182.43,182.39,3.2]
[1753019311068,2.2634178,182.44,182.42,5.4792]
[1753019311363,3.11,182.43,182.42,3.2]
[1753019311755,3.11,182.43,182.42,8.6794]
[1753019312160,3.11,182.43,182.42,5.4794]
[1753019312959,3.11,182.43,182.35,3.2]
[1753019313161,2.2634178,182.41,182.35,3.2]
[1753019313365,2.2634178,182.41,182.4,5.48]
[1753019313565,2.2634178,182.41,182.4,8.68]
[1753019313763,5.3734178,182.41,182.4,8.68]
[1753019314161,2.2634178,182.41,182.38,3.2]
[1753019314364,2.2634178,182.39,182.36,3.2]
[1753019314563,3.11,182.37,182.36,3.2]
[1753019314864,3.11,182.37,182.36,8.6812]
[1753019315060,2.2634178,182.4,182.36,3.2]
[1753019315466,2.2634178,182.4,182.39,8.6803]
[1753019315765,5.3734178,182.4,182.39,8.6803]
[1753019316660,5.3734178,182.42,182.41,5.4797]
[1753019316867,5.3734178,182.42,182.41,8.6797]
[1753019318464,5.3734178,182.42,182.4,5.4799]
[1753019318664,3.11,182.41,182.4,8.6799]
[1753019318866,3.11,182.41,182.4,5.4799]
[1753019319368,3.11,182.41,182.4,8.6799]
[1753019319870,2.2634178,182.42,182.41,8.6797]
[1753019320064,2.2634178,182.42,182.31,469.64]
[1753019320065,3.11,182.44,182.37,3.2]
[1753019320364,3.11,182.46,182.45,5.4785]
[1753019320569,3.11,182.46,182.39,3.2]
[1753019320966,3.11,182.44,182.43,5.4788]
[1753019322866,3.11,182.44,182.43,8.6788]
[1753019323771,2.2634178,182.45,182.44,8.6788]
[1753019324971,5.3734178,182.45,182.44,3.2]
[1753019325273,3.11,182.44,182.43,5.479]
[1753019325774,3.11,182.44,182.43,8.679]
[1753019327667,2.2634178,182.45,182.44,5.4788]
[1753019327866,2.2634178,182.45,182.44,8.6788]
[1753019328264,5.3734178,182.45,182.44,5.4788]
[1753019329174,5.3734178,182.45,182.44,8.6788]
[1753019329366,2.2634178,182.47,182.46,5.4781]
[1753019329563,2.2634178,182.47,182.38,2.2634178]
[1753019329771,3.11,182.46,182.45,3.2]
[1753019330375,3.11,182.46,182.45,8.6784]
[1753019330774,3.11,182.46,182.44,5.4788]
[1753019331081,5.3734178,182.45,182.44,8.6788]
[1753019331769,5.3734178,182.45,182.44,5.4788]
[1753019332777,5.3734178,182.45,182.44,8.6788]
[1753019336680,5.3734178,182.45,182.44,5.4788]
[1753019337282,3.11,182.44,182.43,8.679]
[1753019338480,3.11,182.44,182.43,5.479]
[1753019341387,6.06923707,182.55,182.43,3.06]
[1753019341591,3.17,182.46,182.43,3.06]
[1753019341984,3.17,182.45,182.44,5.4788]
[1753019342182,3.17,182.45,182.44,8.5388]
[1753019343187,5.4334178,182.47,182.46,5.4782]
[1753019343388,3.17,182.47,182.46,5.4782]
[1753019343591,5.4334178,182.47,182.46,5.4782]
[1753019343788,5.4334178,182.47,182.46,8.5382]
[1753019344181,2.2634178,182.49,182.47,5.4777]
[1753019344388,3.17,182.48,182.4,2.2634178]
[1753019344691,3.17,182.48,182.47,5.4779]
[1753019344887,3.17,182.48,182.39,3.06]
[1753019345087,3.17,182.44,182.39,3.06]
[1753019345284,3.17,182.44,182.43,5.4791]
[1753019345482,3.17,182.44,182.43,8.5391]
[1753019346378,3.17,182.44,182.43,5.4791]
[1753019346689,3.17,182.44,182.42,8.5393]
[1753019347086,5.4334178,182.43,182.4,3.06]
[1753019347287,3.17,182.41,182.4,3.06]
[1753019347487,2.2634178,182.43,182.4,3.06]
[1753019347683,2.2634178,182.43,182.42,5.4794]
[1753019347880,3.17,182.44,182.42,3.06]
[1753019348082,2.2634178,182.52,182.42,3.06]
[1753019348083,2.2634178,182.45,182.42,3.06]
[1753019348393,3.17,182.44,182.36,3.06]
[1753019348685,3.17,182.44,182.42,3.06]
[1753019348884,3.17,182.42,182.36,3.06]
[1753019349786,3.17,182.42,182.41,8.5395]
[1753019356194,2.2634178,182.44,182.43,5.4791]
[1753019356391,2.2634178,182.44,182.43,8.5391]
[1753019356785,5.4334178,182.44,182.43,8.5391]
[1753019359190,2.2634178,182.44,182.43,8.5391]
[1753019359396,5.4334178,182.46,182.45,8.5385]
[1753019359696,5.4334178,182.46,182.43,3.06]
[1753019359897,3.17,182.45,182.44,3.06]
[1753019360095,3.17,182.45,182.44,8.5387]
[1753019360294,2.2634178,182.47,182.44,3.06]
[1753019360594,3.17,182.47,182.44,3.06]
[1753019360989,2.2634178,182.49,182.46,3.06]
[1753019361186,3.17,182.49,182.46,3.06]
[1753019361396,3.17,182.5,182.46,3.06]
[1753019361794,3.17,182.5,182.49,5.4773]
[1753019361996,3.17,182.5,182.49,8.5373]
[1753019363098,2.2634178,182.51,182.49,8.5373]
[1753019363296,2.2634178,182.53,182.51,3.06]
[1753019363697,3.17,182.52,182.51,8.5367]
[1753019363992,5.4334178,182.53,182.51,3.06]
[1753019364200,2.2634178,182.55,182.54,5.4758]
[1753019364397,5.4334178,182.57,182.54,3.06]
[1753019364998,2.2634178,182.57,182.54,3.06]
[1753019365203,3.17,182.54,182.49,3.06]
[1753019365395,3.17,182.52,182.49,3.06]
[1753019366101,2.2634178,182.54,182.53,5.4761]
[1753019366297,5.4334178,182.54,182.53,5.4761]
[1753019367000,5.4334178,182.54,182.53,8.5361]
[1753019367196,5.4334178,182.54,182.53,5.4761]
[1753019367402,3.17,182.53,182.52,5.4763]
[1753019368003,3.17,182.53,182.52,8.5263]
[1753019368303,3.17,182.53,182.52,5.4763]
[1753019369001,5.4334178,182.53,182.52,5.4763]
[1753019370606,2.95,182.52,182.44,3.05]
[1753019370801,2.2634178,182.51,182.44,3.05]
[1753019371005,2.95,182.5,182.44,3.05]
[1753019371206,5.2134178,182.51,182.49,3.05]
[1753019371604,2.2634178,182.51,182.49,3.05]
[1753019371807,5.2134178,182.53,182.52,8.5264]
[1753019372205,5.2134178,182.55,182.54,5.4756]
[1753019372410,2.95,182.55,182.54,8.5256]
[1753019372709,5.2134178,182.57,182.54,3.05]
[1753019373407,2.95,182.56,182.55,5.4755]
[1753019373610,2.95,182.56,182.55,8.5255]
[1753019375000,2.2634178,182.57,182.56,8.5252]
[1753019375202,2.95,182.58,182.56,3.05]
[1753019375402,6.06923707,182.65,182.56,3.05]
[1753019375603,14.68694276,182.67,182.56,3.05]
[1753019375604,5.2134178,182.61,182.56,3.05]
[1753019376011,2.95,182.61,182.56,3.05]
[1753019376815,2.95,182.61,182.6,5.474]
[1753019377008,2.95,182.61,182.6,8.524]
[1753019377812,5.2134178,182.63,182.62,8.5234]
[1753019378420,2.95,182.62,182.57,3.05]
[1753019378616,5.2134178,182.58,182.57,3.05]
[1753019379021,5.2134178,182.58,182.57,8.5249]
[1753019380713,5.2134178,182.58,182.57,5.4749]
[1753019381321,5.2134178,182.58,182.57,8.5249]
[1753019383024,2.95,182.58,182.57,8.5249]
[1753019387225,2.95,182.63,182.57,3.05]
[1753019387624,2.95,182.63,182.62,5.4734]
[1753019388325,2.95,182.63,182.62,8.5234]
[1753019389928,2.2634178,182.68,182.62,3.05]
[1753019390128,2.95,182.67,182.62,3.05]
[1753019391132,2.95,182.67,182.66,5.472]
[1753019391433,2.95,182.67,182.66,8.522]
[1753019392333,2.95,182.67,182.66,5.472]
[1753019393132,2.95,182.67,182.66,8.522]
[1753019394331,2.95,182.71,182.61,3.05]
[1753019394635,2.2634178,182.69,182.61,3.05]
[1753019394830,2.95,182.68,182.61,3.05]
[1753019395425,2.95,182.68,182.61,5.3134178]
[1753019395630,2.95,182.7,182.67,3.05]
[1753019396135,2.95,182.69,182.68,3.05]
[1753019397628,2.95,182.69,182.68,5.4716]
[1753019398232,5.2134178,182.69,182.68,5.4716]
[1753019399335,2.95,182.69,182.68,8.4416]
[1753019400236,3.02,182.74,182.66,2.97]
[1753019400536,3.02,182.74,182.68,2.97]
[1753019400736,3.02,182.74,182.73,5.47]
[1753019401939,5.2834178,182.74,182.73,5.47]
[1753019402836,3.02,182.74,182.73,5.47]
[1753019403037,5.2834178,182.74,182.73,5.47]
[1753019404736,5.2834178,182.74,182.6,101.22]
[1753019404737,3.02,182.73,182.61,13.2105178]
[1753019404941,3.02,182.69,182.62,2.97]
[1753019405131,3.02,182.69,182.68,5.4716]
[1753019405332,5.2834178,182.69,182.68,5.4716]
[1753019406840,3.02,182.69,182.68,5.4716]
[1753019407039,3.02,182.69,182.68,8.4416]
[1753019407040,5.2834178,182.69,182.68,8.4416]
[1753019407342,3.02,182.69,182.68,8.4416]
[1753019407641,5.2834178,182.72,182.7,2.97]
[1753019407835,2.2634178,182.76,182.71,2.97]
[1753019408635,2.2634178,182.76,182.68,2.97]
[1753019409443,5.469,182.78,182.68,2.97]
[1753019409646,2.2634178,182.75,182.68,2.97]
[1753019409844,5.2834178,182.75,182.68,2.97]
[1753019411539,5.2834178,182.75,182.73,5.4699]
[1753019411738,3.02,182.74,182.73,5.4699]
[1753019412242,3.02,182.74,182.73,8.4399]
[1753019412441,3.02,182.74,182.73,5.4699]
[1753019413137,3.02,182.74,182.73,8.4399]
[1753019414550,5.469,182.78,182.76,5.469]
[1753019414845,7.7324178,182.77,182.74,2.97]
[1753019415039,5.2834178,182.75,182.74,2.97]
[1753019415349,3.02,182.75,182.74,8.4398]
[1753019415738,5.2834178,182.75,182.74,8.4398]
[1753019416138,107.24923707,182.83,182.74,5.4698]
[1753019416346,3.02,182.78,182.77,5.4689]
[1753019416638,5.2834178,182.78,182.77,5.4689]
[1753019417034,3.02,182.77,182.71,2.97]
[1753019417238,3.02,182.71,182.69,2.97]
[1753019417442,2.2634178,182.72,182.65,2.97]
[1753019418347,7.7318178,182.79,182.74,5.4697]
[1753019418546,2.2634178,182.79,182.74,5.4697]
[1753019419047,5.4688,182.78,182.74,5.4697]
[1753019419448,2.2634178,182.75,182.72,2.97]
[1753019419650,4.1534178,182.73,182.65,2.97]
[1753019419851,2.2634178,182.71,182.65,2.97]
[1753019420147,2.2634178,182.71,182.7,8.441]
[1753019420346,4.1534178,182.71,182.7,5.471]
[1753019421151,2.2634178,182.71,182.68,5.4713]
[1753019421346,4.1534178,182.69,182.68,5.4713]
[1753019422452,1.89,182.68,182.67,5.4718]
[1753019422650,4.1534178,182.68,182.67,5.4718]
[1753019422848,1.89,182.68,182.67,8.4418]
[1753019423150,2.2634178,182.68,182.67,5.4719]
[1753019423652,2.2634178,182.68,182.67,8.4419]
[1753019424855,4.1534178,182.68,182.67,5.4719]
[1753019425549,2.2634178,182.68,182.6,2.2634178]
[1753019426147,2.2634178,182.68,182.67,5.4719]
[1753019426343,2.2634178,182.68,182.67,8.4419]
[1753019427752,1.89,182.74,182.68,2.97]
[1753019428053,2.2634178,182.72,182.68,2.97]
[1753019428255,2.2634178,182.72,182.65,3.1]
[1753019428457,6.06923707,182.78,182.65,3.1]
[1753019428458,1.89,182.69,182.65,3.1]
[1753019428648,2.2634178,182.68,182.65,3.1]
[1753019428948,2.2634178,182.72,182.65,3.1]
[1753019430349,2.2634178,182.72,182.69,5.4711]
[1753019430551,2.2634178,182.72,182.71,3.1]
[1753019431747,1.89,182.74,182.71,3.1]
[1753019431954,1.88,182.74,182.72,3.1]
[1753019432154,2.2634178,182.73,182.72,3.1]
[1753019432348,4.1434178,182.73,182.72,3.1]
[1753019432551,4.1434178,182.73,182.64,3.1]
[1753019433049,2.2634178,182.73,182.72,5.4704]
[1753019433249,2.2634178,182.73,182.72,8.5704]
[1753019436160,2.2634178,182.75,182.74,8.5698]
[1753019436757,1.88,182.76,182.74,8.5698]
[1753019436960,1.88,182.76,182.75,8.5695]
[1753019437259,4.1434178,182.76,182.75,8.5695]
[1753019439661,6.06923707,182.78,182.77,5.4687]
[1753019439854,4.1534178,182.78,182.69,2.2634178]
[1753019440061,2.2634178,182.78,182.68,10.9431]
[1753019440257,1.89,182.76,182.75,8.5693]
[1753019440459,4.1534178,182.76,182.75,8.5693]
[1753019442762,1.89,182.76,182.75,8.5693]
[1753019442961,4.1534178,182.76,182.75,8.5693]
[1753019443965,2.2634178,182.76,182.75,8.5693]
[1753019445163,2.2634178,182.78,182.77,5.4689]
[1753019445358,2.2634178,182.78,182.77,8.5689]
[1753019445858,1.89,182.8,182.77,3.1]
[1753019446063,2.2634178,182.79,182.77,3.1]
[1753019447858,2.2634178,182.79,182.78,8.5686]
[1753019456770,1.89,182.81,182.8,5.468]
[1753019456972,4.1534178,182.81,182.8,8.568]
[1753019457268,1.89,182.88,182.87,5.4659]
[1753019457471,4.1534178,182.88,182.87,5.4659]
[1753019457673,4.1534178,182.88,182.87,8.5659]
[1753019459573,2.2634178,182.88,182.87,8.5659]
[1753019459774,1.89,182.9,182.89,5.4653]
[1753019459965,4.1534178,182.9,182.89,8.5353]
[1753019460174,2.2634178,182.9,182.89,8.5353]
[1753019460672,1.89,182.92,182.91,5.4647]
[1753019460865,4.1534178,182.92,182.89,3.07]
[1753019461070,2.2634178,182.9,182.82,2.2634178]
[1753019461470,2.2634178,182.9,182.89,5.4651]
[1753019461770,2.2634178,182.9,182.89,8.5351]
[1753019463074,4.1534178,182.9,182.89,3.07]
[1753019463272,4.1534178,182.93,182.89,3.07]
[1753019463578,2.2634178,182.91,182.9,5.465]
[1753019463777,4.1534178,182.91,182.83,3.07]
[1753019464177,2.2634178,182.91,182.9,8.535]
[1753019464877,1.89,182.93,182.91,5.4646]
[1753019465074,2.2634178,182.92,182.91,5.4646]
[1753019465574,2.2634178,182.92,182.82,3.07]
[1753019465776,2.2634178,182.9,182.83,3.07]
[1753019466276,2.2634178,182.92,182.91,3.07]
[1753019466976,5.4636,182.95,182.91,3.07]
[1753019467171,2.2634178,182.92,182.91,8.5347]
[1753019468274,2.2634178,182.93,182.91,8.5347]
[1753019468468,2.2634178,182.94,182.92,3.07]
[1753019468676,4.1534178,182.94,182.92,3.07]
[1753019468978,2.2634178,182.94,182.92,8.5344]
[1753019469167,1.89,182.93,182.92,8.5344]
[1753019469570,1.89,182.93,182.92,3.07]
[1753019470274,4.1534178,182.93,182.92,3.07]
[1753019470475,1.89,182.93,182.92,3.07]
[1753019470676,4.1534178,182.93,182.92,3.07]
[1753019470877,4.1534178,182.93,182.81,367.64]
[1753019470878,1.89,182.92,182.82,3.07]
[1753019471180,2.2634178,182.89,182.83,3.07]
[1753019471572,2.2634178,182.89,182.82,2.2634178]
[1753019471573,2.2634178,182.89,182.88,8.5354]
[1753019471774,1.89,182.9,182.88,3.07]
[1753019471972,2.2634178,182.91,182.82,2.2634178]
[1753019472178,2.2634178,182.91,182.9,3.07]
[1753019472878,2.2634178,182.91,182.9,5.4648]
[1753019473174,1.89,182.92,182.9,5.4648]
[1753019473379,4.1534178,182.91,182.9,5.4648]
[1753019473579,4.1534178,182.91,182.9,8.5348]
[1753019473881,4.1534178,182.91,182.9,3.07]
[1753019474079,1.89,182.9,182.83,3.07]
[1753019474280,2.2634178,182.89,182.83,3.07]
[1753019474580,4.1534178,182.89,182.83,3.07]
[1753019475181,1.89,182.89,182.83,3.07]
[1753019475377,1.89,182.89,182.88,5.4656]
[1753019475684,4.1534178,182.9,182.88,8.5356]
[1753019476484,1.89,182.89,182.88,8.5356]
[1753019476689,1.89,182.89,182.88,3.07]
[1753019476879,1.89,182.89,182.82,2.2634178]
[1753019477074,2.2634178,182.97,182.83,3.07]
[1753019477075,2.2634178,182.88,182.83,3.07]
[1753019477281,6.06923707,182.95,182.83,3.07]
[1753019477482,1.89,182.87,182.83,3.07]
[1753019477681,2.2634178,182.86,182.78,2.2634178]
[1753019477878,2.2634178,182.86,182.79,3.07]
[1753019478588,1.89,182.83,182.79,3.07]
[1753019478884,1.89,182.83,182.81,5.4675]
[1753019479085,1.89,182.83,182.81,8.5375]
[1753019479584,11.53923707,182.92,182.83,5.4671]
[1753019479780,5.47,182.91,182.84,3.07]
[1753019479976,4.1534178,182.86,182.85,3.07]
[1753019480178,4.1534178,182.86,182.77,2.2634178]
[1753019480179,4.1534178,182.86,182.84,5.4668]
[1753019480384,4.1534178,182.86,182.84,8.5368]
[1753019481282,4.1534178,182.88,182.86,3.07]
[1753019481889,1.89,182.87,182.86,3.07]
[1753019482078,1.89,182.87,182.84,5.4667]
[1753019482279,1.89,182.87,182.85,3.07]
[1753019482481,2.2634178,182.88,182.85,3.07]
[1753019482687,1.89,182.86,182.85,3.07]
[1753019483490,9.6191178,182.88,182.85,3.07]
[1753019483686,1.89,182.87,182.85,3.07]
[1753019484190,1.89,182.86,182.85,3.07]
[1753019484687,1.89,182.87,182.86,3.07]
[1753019484886,1.89,182.87,182.85,5.4665]
[1753019485086,1.89,182.87,182.85,3.07]